bitfinex/quotes_SOLUSD_20241123
["timestamp","ask_amount","ask_price","bid_price","bid_amount"]
[1732369986606,5.20674285,259.24,259.17,23.776884]
[1732369987007,5.20674285,259.24,259.17,20.0]
[1732369988506,20.8269714,259.35,259.18,23.776884]
[1732369988507,6.04411383,259.35,259.18,23.776884]
[1732369988684,5.20674285,259.26,259.18,23.776884]
[1732369990602,5.20674285,259.24,259.18,23.776884]
[1732369991015,5.20674285,259.24,259.17,20.0]
[1732369993413,5.20674285,259.28,259.18,23.776884]
[1732369993622,5.20674285,259.26,259.18,23.776884]
[1732369996513,5.20674285,259.26,259.17,25.07986262]
[1732369997604,5.20674285,259.24,259.17,25.07986262]
[1732369997811,5.20674285,259.24,259.17,5.07986262]
[1732370001900,5.20674285,259.25,259.17,5.07986262]
[1732370003329,5.20674285,259.25,259.16,15.321]
[1732370003931,5.20674285,259.19,259.14,6.53310122]
[1732370004418,23.776884,259.27,259.14,6.53310122]
[1732370004618,5.20674285,259.19,259.14,6.53310122]
[1732370005011,5.20674285,259.17,259.14,6.53310122]
[1732370007210,17.16671383,259.28,259.14,6.53310122]
[1732370007422,5.20674285,259.23,259.14,6.53310122]
[1732370009422,6.04411383,259.33,259.15,5.20674285]
[1732370009736,10.7732,259.34,259.15,5.20674285]
[1732370009737,5.20674285,259.24,259.15,5.20674285]
[1732370011549,16.81731383,259.34,259.15,5.20674285]
[1732370011719,5.20674285,259.24,259.15,5.20674285]
[1732370012939,20.0,259.22,259.11,43.776884]
[1732370013113,20.0,259.22,259.15,5.20674285]
[1732370013311,15.20674285,259.22,259.11,43.776884]
[1732370013612,10.0,259.19,259.14,23.776884]
[1732370013843,20.0,259.23,259.14,23.776884]
[1732370014144,20.0,259.23,259.15,5.20674285]
[1732370014315,10.0,259.21,259.15,5.20674285]
[1732370014522,20.0,259.21,259.15,5.20674285]
[1732370014743,10.0,259.19,259.15,5.20674285]
[1732370015740,20.0,259.19,259.13,5.20674285]
[1732370016438,10.0,259.19,259.13,5.20674285]
[1732370016730,20.0,259.19,259.13,5.20674285]
[1732370016937,10.0,259.19,259.13,5.20674285]
[1732370017143,20.0,259.19,259.13,5.20674285]
[1732370018616,10.0,259.19,259.13,5.20674285]
[1732370019024,10.0,259.19,259.15,5.20674285]
[1732370019523,10.0,259.2,259.15,5.20674285]
[1732370020341,23.776884,259.32,259.3,112.75027715]
[1732370020636,5.78533642,259.31,259.3,112.75027715]
[1732370023429,5.78533642,259.31,259.3,70.19891877]
[1732370030050,5.20674285,259.31,259.3,70.19891877]
[1732370032339,0.57859357,259.34,259.3,70.19891877]
[1732370032652,5.20674285,259.31,259.3,70.19891877]
[1732370039362,5.20674285,259.31,259.23,15.2561]
[1732370039661,5.20674285,259.29,259.23,15.2561]
[1732370040442,5.20674285,259.29,259.24,23.776884]
[1732370045349,5.20674285,259.3,259.24,23.776884]
[1732370045566,0.57859357,259.42,259.35,64.98757415]
[1732370045939,5.20674285,259.36,259.35,64.98757415]
[1732370053883,5.20674285,259.36,259.23,15.2561]
[1732370054049,5.20674285,259.3,259.23,15.2561]
[1732370055087,5.20674285,259.24,259.23,15.2561]
[1732370055253,5.20674285,259.24,259.01,81.8]
[1732370055254,5.20674285,259.24,259.17,16.2849]
[1732370055460,5.20674285,259.19,259.17,16.2849]
[1732370056267,27.632884,259.33,259.17,16.2849]
[1732370056465,5.20674285,259.21,259.17,16.2849]
[1732370056959,5.20674285,259.23,259.17,16.2849]
[1732370060371,23.776884,259.34,259.21,10.0]
[1732370060572,5.20674285,259.23,259.21,10.0]
[1732370061460,10.3258457,259.4,259.24,10.0]
[1732370061658,5.20674285,259.27,259.24,10.0]
[1732370062368,10.0,259.43,259.2,6.051]
[1732370062369,3.8546,259.43,259.23,23.776884]
[1732370062571,5.20674285,259.31,259.28,10.0]
[1732370062787,10.31504936,259.43,259.28,10.0]
[1732370062983,5.20674285,259.3,259.28,10.0]
[1732370064280,5.20674285,259.32,259.31,10.0]
[1732370064496,11.4891,259.44,259.31,10.0]
[1732370064674,11.4891,259.44,259.33,10.0]
[1732370064877,11.4891,259.44,259.31,10.0]
[1732370065263,11.4891,259.44,259.34,10.0]
[1732370065459,11.4891,259.44,259.32,10.0]
[1732370065875,5.20674285,259.33,259.32,10.0]
[1732370066365,5.20674285,259.33,259.27,16.2849]
[1732370066366,5.20674285,259.33,259.3,10.0]
[1732370066571,5.20674285,259.33,259.32,10.0]
[1732370066878,5.20674285,259.33,259.3,10.0]
[1732370067076,5.20674285,259.33,259.32,10.0]
[1732370067383,5.20674285,259.33,259.31,10.0]
[1732370068293,5.20674285,259.33,259.27,16.2849]
[1732370068491,5.20674285,259.28,259.21,15.5297]
[1732370068795,5.20674285,259.24,259.21,25.5297]
[1732370069084,5.20674285,259.26,259.21,25.5297]
[1732370069284,5.20674285,259.26,259.21,15.5297]
[1732370069674,5.20674285,259.26,259.22,10.0]
[1732370069874,20.8269714,259.35,259.22,10.0]
[1732370070189,5.20674285,259.28,259.24,10.0]
[1732370070371,5.20674285,259.28,259.21,15.5297]
[1732370070569,5.20674285,259.28,259.23,10.0]
[1732370070786,5.20674285,259.28,259.21,25.5297]
[1732370073992,11.4891,259.44,259.3,10.0]
[1732370074199,5.20674285,259.31,259.3,10.0]
[1732370075685,5.20674285,259.31,259.28,10.0]
[1732370075886,3.8547,259.42,259.3,10.0]
[1732370076097,5.20674285,259.31,259.3,10.0]
[1732370078078,5.20674285,259.31,259.25,10.0]
[1732370078276,20.8269714,259.35,259.26,10.0]
[1732370079080,20.8269714,259.35,259.28,10.0]
[1732370079282,5.20674285,259.29,259.28,10.0]
[1732370081979,28.98362685,259.29,259.28,10.0]
[1732370084678,5.20674285,259.29,259.28,10.0]
[1732370086003,5.20674285,259.31,259.3,10.0]
[1732370086713,12.12351,259.42,259.3,10.0]
[1732370086886,11.4891,259.44,259.32,10.0]
[1732370087200,5.20674285,259.34,259.32,10.0]
[1732370087785,11.4891,259.44,259.32,10.0]
[1732370087985,5.20674285,259.33,259.32,10.0]
[1732370088299,11.4891,259.44,259.32,10.0]
[1732370088507,5.20674285,259.33,259.32,10.0]
[1732370089497,23.776884,259.43,259.35,10.0]
[1732370089702,5.20674285,259.36,259.35,10.0]
[1732370090291,23.776884,259.43,259.35,10.0]
[1732370090613,5.20674285,259.37,259.35,10.0]
[1732370092815,5.20674285,259.36,259.35,10.0]
[1732370095790,4.69802645,259.36,259.35,10.0]
[1732370103490,23.776884,259.43,259.38,10.0]
[1732370103806,5.20674285,259.39,259.38,10.0]
[1732370104011,23.776884,259.43,259.39,10.0]
[1732370104318,23.776884,259.43,259.35,10.0]
[1732370104487,23.776884,259.43,259.3,21.7773]
[1732370104488,23.776884,259.43,259.39,10.0]
[1732370104688,23.776884,259.43,259.35,10.0]
[1732370104990,23.776884,259.43,259.39,10.0]
[1732370105308,5.20674285,259.4,259.39,10.0]
[1732370106015,5.20674285,259.4,259.36,10.0]
[1732370106193,23.776884,259.43,259.38,10.0]
[1732370107326,5.20674285,259.39,259.38,10.0]
[1732370117219,5.20674285,259.39,259.36,10.0]
[1732370117423,5.20674285,259.37,259.36,10.0]
[1732370118130,5.20674285,259.37,259.3,29.4258]
[1732370118425,20.8269714,259.48,259.3,25.5788]
[1732370118426,5.20674285,259.31,259.3,25.5788]
[1732370118603,5.20674285,259.31,259.3,10.0]
[1732370119012,23.776884,259.42,259.32,10.0]
[1732370119219,23.776884,259.42,259.3,10.0]
[1732370119528,5.20674285,259.31,259.3,10.0]
[1732370119915,5.20674285,259.31,259.24,26.66955815]
[1732370119916,5.20674285,259.33,259.32,10.0]
[1732370121227,23.776884,259.44,259.34,10.0]
[1732370121421,5.20674285,259.35,259.34,10.0]
[1732370122833,5.20674285,259.35,259.3,10.0]
[1732370123135,5.20674285,259.35,259.34,10.0]
[1732370124033,23.776884,259.45,259.34,10.0]
[1732370124332,5.20674285,259.36,259.34,10.0]
[1732370124723,23.776884,259.45,259.35,10.0]
[1732370124911,23.776884,259.47,259.37,10.0]
[1732370125108,5.20674285,259.38,259.37,10.0]
[1732370127611,23.776884,259.47,259.4,10.0]
[1732370127832,5.20674285,259.41,259.4,10.0]
[1732370128335,5.20674285,259.41,259.37,10.0]
[1732370128508,5.20674285,259.41,259.4,10.0]
[1732370130433,5.20674285,259.41,259.37,10.0]
[1732370130612,23.776884,259.47,259.4,10.0]
[1732370131932,5.20674285,259.41,259.4,10.0]
[1732370132337,23.52431,259.56,259.45,10.0]
[1732370132630,5.20674285,259.5,259.45,10.0]
[1732370133213,3.8523,259.59,259.49,10.0]
[1732370133428,5.20674285,259.5,259.47,10.0]
[1732370133626,5.20674285,259.49,259.47,10.0]
[1732370134331,5.20674285,259.49,259.45,10.0]
[1732370134633,5.20674285,259.46,259.45,10.0]
[1732370136539,5.20674285,259.48,259.45,10.0]
[1732370138532,5.20674285,259.48,259.46,10.0]
[1732370138737,3.8522,259.59,259.45,10.0]
[1732370138972,5.20674285,259.48,259.47,10.0]
[1732370139435,5.20674285,259.48,259.43,16.2038]
[1732370139617,5.20674285,259.45,259.43,10.0]
[1732370140639,5.20674285,259.47,259.46,10.0]
[1732370141918,5.20674285,259.47,259.43,10.0]
[1732370142134,5.20674285,259.47,259.41,16.1022]
[1732370142135,5.20674285,259.47,259.46,10.0]
[1732370142541,27.629784,259.55,259.46,10.0]
[1732370142845,5.20674285,259.47,259.46,10.0]
[1732370143051,5.20674285,259.47,259.44,10.0]
[1732370143218,5.20674285,259.47,259.46,10.0]
[1732370145327,5.20674285,259.47,259.44,10.0]
[1732370145534,5.20674285,259.47,259.46,10.0]
[1732370146144,5.20674285,259.49,259.46,10.0]
[1732370146317,5.20674285,259.49,259.48,10.0]
[1732370147258,5.20674285,259.51,259.5,10.0]
[1732370147728,5.20674285,259.51,259.45,10.0]
[1732370147925,5.20674285,259.48,259.45,10.0]
[1732370148321,5.20674285,259.48,259.47,10.0]
[1732370149421,3.8521,259.6,259.49,10.0]
[1732370149625,5.20674285,259.51,259.49,10.0]
[1732370152035,15.41196903,259.69,259.5,15.9727]
[1732370152250,5.20674285,259.61,259.57,10.0]
[1732370152450,11.2451,259.69,259.57,10.0]
[1732370152451,5.20674285,259.59,259.57,10.0]
[1732370153235,11.2451,259.69,259.57,10.0]
[1732370153467,5.20674285,259.61,259.57,10.0]
[1732370153997,3.8505,259.71,259.62,10.0]
[1732370154140,5.20674285,259.63,259.6,10.0]
[1732370154347,5.20674285,259.63,259.62,10.0]
[1732370154870,20.8269714,259.74,259.65,10.0]
[1732370155031,4.70674285,259.66,259.65,10.0]
[1732370155360,5.20674285,259.68,259.67,10.0]
[1732370155960,5.20674285,259.68,259.65,10.0]
[1732370156134,20.8269714,259.74,259.67,10.0]
[1732370156652,5.20674285,259.68,259.67,10.0]
[1732370157033,5.20674285,259.68,259.61,15.9727]
[1732370157034,5.20674285,259.68,259.65,10.0]
[1732370157251,5.20674285,259.66,259.61,10.0]
[1732370157451,5.20674285,259.62,259.61,10.0]
[1732370157656,23.776884,259.73,259.64,10.0]
[1732370157836,23.776884,259.73,259.61,10.0]
[1732370158029,5.20674285,259.63,259.61,10.0]
[1732370158237,23.776884,259.73,259.61,10.0]
[1732370158434,5.20674285,259.63,259.62,10.0]
[1732370158659,23.776884,259.73,259.62,10.0]
[1732370158660,5.20674285,259.64,259.62,10.0]
[1732370158970,23.776884,259.73,259.62,10.0]
[1732370158971,5.20674285,259.66,259.62,10.0]
[1732370159253,5.20674285,259.66,259.65,10.0]
[1732370161053,23.776884,259.73,259.65,10.0]
[1732370161241,23.776884,259.73,259.68,10.0]
[1732370161444,5.20674285,259.69,259.66,10.0]
[1732370161645,23.776884,259.73,259.68,10.0]
[1732370161849,20.8269714,259.74,259.68,10.0]
[1732370162237,3.8493,259.79,259.68,10.0]
[1732370162551,5.20674285,259.69,259.68,10.0]
[1732370162766,21.69218181,259.81,259.7,10.0]
[1732370162940,5.20674285,259.71,259.7,10.0]
[1732370163140,10.44708181,259.81,259.7,10.0]
[1732370163332,3.8487,259.83,259.72,10.0]
[1732370163545,5.20674285,259.73,259.72,10.0]
[1732370164566,5.206742,259.93,259.84,10.0]
[1732370164861,5.206742,259.93,259.86,10.0]
[1732370164862,5.20674285,259.87,259.86,10.0]
[1732370165644,5.20674285,259.87,259.84,10.0]
[1732370165850,40.8269714,260.0,259.88,10.0]
[1732370166050,40.8269714,260.0,259.83,15.9727]
[1732370166051,5.20674285,259.89,259.86,10.0]
[1732370166348,5.20674285,259.87,259.86,10.0]
[1732370166549,40.8269714,260.0,259.87,10.0]
[1732370166863,44.6730714,260.0,259.89,10.0]
[1732370167171,44.6730714,260.0,259.9,10.0]
[1732370167479,44.6730714,260.0,259.88,10.0]
[1732370167762,3.8465,259.98,259.88,10.0]
[1732370167968,5.20674285,259.89,259.86,10.0]
[1732370168165,3.8465,259.98,259.86,10.0]
[1732370168166,5.20674285,259.87,259.86,10.0]
[1732370169580,23.776884,259.97,259.86,10.0]
[1732370169873,5.20674285,259.88,259.86,10.0]
[1732370170363,5.20674285,259.9,259.88,10.0]
[1732370171148,5.20674285,259.9,259.86,10.0]
[1732370171347,5.20674285,259.88,259.87,10.0]
[1732370172241,5.20674285,259.9,259.87,10.0]
[1732370173059,5.20674285,259.9,259.88,10.0]
[1732370173267,5.20674285,259.9,259.85,10.0]
[1732370173462,5.20674285,259.9,259.83,15.9727]
[1732370173463,5.20674285,259.9,259.88,10.0]
[1732370173765,5.20674285,259.91,259.88,10.0]
[1732370174085,5.20674285,259.91,259.89,10.0]
[1732370174445,5.20674285,259.91,259.86,10.0]
[1732370174650,23.776884,259.94,259.89,10.0]
[1732370174854,5.20674285,259.91,259.89,10.0]
[1732370175070,5.20674285,259.92,259.89,10.0]
[1732370175372,5.20674285,259.92,259.9,10.0]
[1732370175573,5.20674285,259.92,259.87,10.0]
[1732370176581,5.20674285,259.92,259.89,10.0]
[1732370177556,5.20674285,259.9,259.89,10.0]
[1732370178864,5.20674285,259.9,259.87,10.0]
[1732370179767,5.20674285,259.9,259.89,10.0]
[1732370180184,4.70674285,259.9,259.89,10.0]
[1732370181659,4.70674285,259.9,259.85,10.0]
[1732370181965,5.20674285,259.86,259.83,10.0]
[1732370182168,5.20674285,259.84,259.83,10.0]
[1732370182366,20.1925,259.98,259.85,10.0]
[1732370182367,23.776884,259.97,259.85,10.0]
[1732370182677,23.776884,259.97,259.88,10.0]
[1732370182678,5.20674285,259.89,259.88,10.0]
[1732370183057,5.20674285,259.89,259.86,10.0]
[1732370183261,23.776884,259.97,259.86,10.0]
[1732370183574,5.20674285,259.9,259.84,10.0]
[1732370183887,5.20674285,259.88,259.84,10.0]
[1732370185087,5.20674285,259.9,259.86,10.0]
[1732370185264,5.20674285,259.9,259.84,10.0]
[1732370185470,23.776884,259.97,259.87,10.0]
[1732370185471,5.20674285,259.88,259.87,10.0]
[1732370185662,3.8467,259.96,259.85,10.0]
[1732370185861,5.20674285,259.89,259.88,10.0]
[1732370186051,28.98362685,259.89,259.85,10.0]
[1732370186258,28.98362685,259.89,259.79,5.20674285]
[1732370186259,5.20674285,259.89,259.87,10.0]
[1732370186481,5.20674285,259.89,259.85,10.0]
[1732370186877,5.20674285,259.89,259.87,10.0]
[1732370187083,5.20674285,259.91,259.87,10.0]
[1732370187259,5.20674285,259.91,259.84,10.0]
[1732370187581,23.776884,259.95,259.79,5.20674285]
[1732370187582,5.20674285,259.89,259.86,10.0]
[1732370187973,5.20674285,259.89,259.84,10.0]
[1732370188881,3.8468,259.96,259.77,15.0462]
[1732370188882,23.776884,259.97,259.88,10.0]
[1732370189061,5.20674285,259.91,259.88,10.0]
[1732370189959,5.20674285,259.93,259.88,10.0]
[1732370190160,5.20674285,259.93,259.91,10.0]
[1732370191368,5.20674285,259.93,259.88,10.0]
[1732370191568,23.776884,259.99,259.91,10.0]
[1732370192074,23.776884,259.99,259.89,10.0]
[1732370192282,5.20674285,259.91,259.89,10.0]
[1732370194991,5.20674285,259.91,259.87,10.0]
[1732370195196,5.20674285,259.88,259.87,10.0]
[1732370196483,23.776884,259.96,259.87,10.0]
[1732370196684,5.20674285,259.88,259.85,10.0]
[1732370197168,5.20674285,259.88,259.87,10.0]
[1732370197559,5.20674285,259.88,259.85,10.0]
[1732370197783,5.20674285,259.88,259.87,10.0]
[1732370198879,5.20674285,259.88,259.85,10.0]
[1732370199085,5.20674285,259.88,259.87,10.0]
[1732370199288,33.776884,259.99,259.87,10.0]
[1732370199289,3.8464,259.98,259.87,10.0]
[1732370199471,5.20674285,259.89,259.86,10.0]
[1732370199676,5.20674285,259.89,259.88,10.0]
[1732370200076,5.20674285,259.89,259.86,10.0]
[1732370200286,5.20674285,259.89,259.88,10.0]
[1732370200988,5.20674285,259.89,259.86,10.0]
[1732370201290,3.8463,259.99,259.9,10.0]
[1732370201597,5.20674285,259.91,259.9,10.0]
[1732370201798,5.20674285,259.91,259.89,10.0]
[1732370202383,23.776884,259.9,259.89,10.0]
[1732370202970,23.776884,259.9,259.85,10.0]
[1732370203181,5.20674285,259.86,259.85,10.0]
[1732370206585,23.776884,259.85,259.8,10.0]
[1732370206768,5.20674285,259.83,259.8,10.0]
[1732370206967,5.20674285,259.83,259.82,10.0]
[1732370210494,23.776884,259.85,259.84,10.0]
[1732370210675,10.1239,259.95,259.84,10.0]
[1732370210876,5.20674285,259.85,259.84,10.0]
[1732370211075,5.20674285,259.85,259.8,10.0]
[1732370211292,5.20674285,259.85,259.84,10.0]
[1732370212187,5.20674285,259.85,259.81,10.0]
[1732370212499,5.20674285,259.85,259.84,10.0]
[1732370212694,5.20674285,259.85,259.81,10.0]
[1732370213079,23.776884,259.92,259.84,10.0]
[1732370213278,5.20674285,259.85,259.81,10.0]
[1732370213503,5.20674285,259.85,259.84,10.0]
[1732370214023,13.8467,259.97,259.84,10.0]
[1732370214403,5.20674285,259.87,259.84,10.0]
[1732370215206,5.20674285,259.85,259.84,10.0]
[1732370215877,5.20674285,259.85,259.81,10.0]
[1732370216083,5.20674285,259.85,259.84,10.0]
[1732370217889,5.20674285,259.87,259.84,10.0]
[1732370218086,5.20674285,259.87,259.81,15.29643117]
[1732370218693,5.20674285,259.87,259.84,10.0]
[1732370219604,18.75571226,259.97,259.87,10.0]
[1732370219605,5.20674285,259.91,259.87,10.0]
[1732370219898,5.20674285,259.91,259.89,10.0]
[1732370220078,5.20674285,259.91,259.87,10.0]
[1732370220402,5.20674285,259.89,259.87,10.0]
[1732370220588,5.20674285,259.88,259.87,10.0]
[1732370220778,5.20674285,259.88,259.84,10.0]
[1732370221106,5.20674285,259.88,259.87,10.0]
[1732370221893,5.20674285,259.88,259.85,10.0]
[1732370222072,5.20674285,259.88,259.87,10.0]
[1732370222704,5.20674285,259.88,259.85,10.0]
[1732370222995,5.20674285,259.86,259.85,10.0]
[1732370223808,28.98362685,259.86,259.85,10.0]
[1732370224513,23.776884,259.85,259.8,10.0]
[1732370224682,23.776884,259.85,259.79,10.0]
[1732370224683,5.20674285,259.81,259.79,10.0]
[1732370225006,23.776884,259.85,259.79,10.0]
[1732370225007,5.20674285,259.8,259.79,10.0]
[1732370225490,23.776884,259.86,259.79,10.0]
[1732370225694,23.776884,259.86,259.84,10.0]
[1732370227498,23.776884,259.84,259.81,10.0]
[1732370227698,5.20674285,259.83,259.81,10.0]
[1732370228715,5.20674285,259.88,259.84,10.0]
[1732370229038,10.0,259.98,259.89,10.0]
[1732370229039,5.20674285,259.91,259.89,10.0]
[1732370230106,5.20674285,259.91,259.81,5.20674285]
[1732370230107,5.20674285,259.91,259.86,10.0]
[1732370230311,23.776884,259.97,259.89,10.0]
[1732370231410,5.20674285,259.9,259.89,10.0]
[1732370235720,23.776884,259.89,259.87,10.0]
[1732370235906,28.98362685,259.88,259.87,10.0]
[1732370237623,5.20674285,259.88,259.87,10.0]
[1732370238719,23.776884,259.95,259.87,10.0]
[1732370238920,5.20674285,259.88,259.87,10.0]
[1732370241620,23.776884,259.95,259.87,10.0]
[1732370241825,5.20674285,259.88,259.87,10.0]
[1732370242123,23.776884,259.96,259.89,10.0]
[1732370242432,5.20674285,259.92,259.91,10.0]
[1732370243522,5.20674285,259.92,259.86,27.13023666]
[1732370243523,25.9321571,260.0,259.93,10.0]
[1732370243724,5.20674285,259.94,259.93,10.0]
[1732370243904,5.20674285,259.94,259.92,10.0]
[1732370244112,40.8269714,260.0,259.92,10.0]
[1732370244321,40.8269714,260.0,259.93,10.0]
[1732370244707,40.8269714,260.0,259.9,10.0]
[1732370244906,5.20674285,259.92,259.9,10.0]
[1732370247513,23.8462,260.0,259.9,10.0]
[1732370247713,23.8462,260.0,259.86,22.3629]
[1732370247714,23.776884,259.99,259.91,10.0]
[1732370247925,23.776884,259.99,259.86,22.3629]
[1732370247926,5.20674285,259.92,259.89,10.0]
[1732370248107,5.20674285,259.9,259.89,10.0]
[1732370248431,20.0,260.0,259.94,10.0]
[1732370248612,5.20674285,259.95,259.89,10.0]
[1732370248813,20.0,260.0,259.89,10.0]
[1732370248814,5.20674285,259.91,259.89,10.0]
[1732370250013,5.20674285,259.91,259.89,11.04176388]
[1732370250528,5.20674285,259.93,259.91,10.0]
[1732370257129,23.776884,259.99,259.93,10.0]
[1732370257315,5.20674285,259.94,259.93,10.0]
[1732370259621,5.20674285,259.94,259.9,10.0]
[1732370259822,5.20674285,259.91,259.9,10.0]
[1732370260114,20.0,260.0,259.95,10.0]
[1732370260319,5.20674285,259.96,259.95,10.0]
[1732370260915,5.20674285,259.96,259.91,10.0]
[1732370261109,5.20674285,259.92,259.91,10.0]
[1732370261310,20.0,260.0,259.91,10.0]
[1732370261506,5.20674285,259.92,259.91,10.0]
[1732370262243,40.8269714,260.0,259.89,1.04176388]
[1732370262244,40.8269714,260.0,259.95,10.0]
[1732370262719,40.8269714,260.0,259.96,10.0]
[1732370262921,5.20674285,259.97,259.96,10.0]
[1732370264533,5.20674285,259.97,259.91,10.0]
[1732370264831,40.8269714,260.0,259.96,10.0]
[1732370265016,5.20674285,259.97,259.96,10.0]
[1732370265212,5.20674285,259.97,259.94,10.0]
[1732370265415,5.20674285,259.95,259.94,10.0]
[1732370266030,40.8269714,260.0,259.96,10.0]
[1732370266031,20.0,260.0,259.96,10.0]
[1732370266234,5.20674285,259.97,259.96,10.0]
[1732370266616,5.20674285,259.97,259.94,10.0]
[1732370266837,5.20674285,259.95,259.94,10.0]
[1732370269845,5.20674285,259.95,259.92,10.0]
[1732370270020,40.8269714,260.0,259.94,10.0]
[1732370270219,40.8269714,260.0,259.96,10.0]
[1732370270743,35.62022855,260.0,259.96,10.0]
[1732370270945,20.0,260.0,259.96,26.2615]
[1732370271454,20.0,260.0,259.98,10.0]
[1732370271623,5.20674285,259.99,259.98,10.0]
[1732370272226,20.0,260.0,259.98,10.0]
[1732370272538,5.20674285,259.99,259.98,10.0]
[1732370272720,20.0,260.0,259.98,10.0]
[1732370272921,5.20674285,259.99,259.98,10.0]
[1732370275020,20.0,260.0,259.98,10.0]
[1732370275225,5.20674285,259.99,259.98,10.0]
[1732370275442,20.0,260.0,259.98,10.0]
[1732370275642,5.20674285,259.99,259.98,10.0]
[1732370276649,20.0,260.0,259.98,10.0]
[1732370276829,5.20674285,259.99,259.98,10.0]
[1732370277950,40.8269714,260.0,259.98,10.0]
[1732370277951,20.0,260.0,259.98,10.0]
[1732370278152,5.20674285,259.99,259.98,10.0]
[1732370278447,25.20674285,260.0,259.98,10.0]
[1732370279530,20.0,260.0,259.98,10.0]
[1732370279732,5.20674285,259.99,259.98,10.0]
[1732370281227,20.0,260.0,259.98,10.0]
[1732370281439,20.0,260.0,259.99,10.0]
[1732370281440,25.20674285,260.0,259.99,10.0]
[1732370281655,20.0,260.0,259.99,10.0]
[1732370281855,25.20674285,260.0,259.97,10.0]
[1732370282047,20.0,260.0,259.99,10.0]
[1732370282361,25.20674285,260.0,259.99,10.0]
[1732370282847,20.0,260.0,259.99,10.0]
[1732370283155,25.20674285,260.0,259.99,10.0]
[1732370285533,46.03371425,260.0,259.99,10.0]
[1732370286360,46.03371425,260.0,259.97,10.0]
[1732370286557,5.20674285,259.98,259.97,10.0]
[1732370287056,5.20674285,259.98,259.9,15.691]
[1732370287354,5.20674285,259.91,259.9,15.691]
[1732370287538,40.8269714,260.0,259.9,15.691]
[1732370287736,5.20674285,259.92,259.9,15.691]
[1732370288138,20.0,260.0,259.97,136.8]
[1732370288342,20.0,260.0,259.9,15.691]
[1732370288343,5.20674285,259.98,259.9,15.691]
[1732370288655,5.20674285,259.96,259.9,15.691]
[1732370289852,20.0,260.0,259.9,15.691]
[1732370290162,5.20674285,259.98,259.9,15.691]
[1732370290357,5.20674285,259.96,259.9,15.691]
[1732370290543,5.20674285,259.91,259.9,15.691]
[1732370290751,5.20674285,259.93,259.9,15.691]
[1732370291941,5.20674285,259.91,259.9,15.691]
[1732370294147,5.20674285,259.93,259.9,15.691]
[1732370294966,5.20674285,259.91,259.9,15.691]
[1732370296949,20.0,260.0,259.9,15.691]
[1732370297157,5.20674285,259.94,259.9,15.691]
[1732370297356,20.0,260.0,259.9,15.691]
[1732370297564,5.20674285,259.94,259.9,15.691]
[1732370299744,5.20674285,259.92,259.9,15.691]
[1732370300743,20.0,260.0,259.9,15.691]
[1732370301056,5.20674285,259.92,259.9,15.691]
[1732370302060,20.0,260.0,259.9,15.691]
[1732370302447,5.20674285,259.93,259.9,15.691]
[1732370302664,40.8269714,260.0,259.9,15.691]
[1732370302665,20.0,260.0,259.9,15.691]
[1732370302869,5.20674285,259.94,259.9,15.691]
[1732370303248,20.0,260.0,259.9,15.691]
[1732370303449,5.20674285,259.94,259.9,15.691]
[1732370304462,20.0,260.0,259.9,15.691]
[1732370304642,5.20674285,259.95,259.9,15.691]